fUSD/lending_fUSD_20240814
["ID","MTS","AMOUNT","RATE_DAILY","PERIOD"]
[334861695,1723610432008,-666.86,0.00014794,2]
[334861696,1723610432043,-500.0,0.00014794,2]
[334861697,1723610432077,-500.0,0.00014794,2]
[334861698,1723610432112,-500.0,0.00014794,2]
[334861699,1723610432149,-577.56,0.00014794,2]
[334861700,1723610432188,-500.0,0.00014794,2]
[334861701,1723610432226,-500.0,0.00014794,2]
[334861702,1723610432262,-1105.13,0.00014794,2]
[334861703,1723610432296,-550.22,0.00014794,2]
[334861704,1723610432331,-549.11,0.00014794,2]
[334861705,1723610432367,-544.03,0.00014794,2]
[334861706,1723610432401,-500.0,0.00014794,2]
[334861707,1723610432436,-698.56,0.00014794,2]
[334861708,1723610432470,-500.0,0.00014794,2]
[334861709,1723610432503,-500.0,0.00014794,2]
[334861710,1723610432537,-500.0,0.00014794,2]
[334861711,1723610432570,-500.0,0.00014794,2]
[334861712,1723610432603,-500.0,0.00014794,2]
[334861713,1723610432636,-1053.8,0.00014794,2]
[334861714,1723610432675,-500.0,0.00014794,2]
[334861715,1723610432716,-485.38307148,0.00014794,2]
[334861716,1723610432749,-500.0,0.00014794,2]
[334861717,1723610432783,-500.0,0.00014794,2]
[334861718,1723610432817,-576.22,0.00014794,2]
[334861719,1723610432850,-543.1,0.00014794,2]
[334861720,1723610432884,-500.0,0.00014794,2]
[334861721,1723610432917,-500.0,0.00014794,2]
[334861722,1723610432953,-155.0,0.00014988,2]
[334861723,1723610433573,500.0,0.00014783,2]
[334861724,1723610433617,500.0,0.00014509,2]
[334861725,1723610433675,500.0,0.00014783,2]
[334861726,1723610433715,876.69,0.00013698,2]
[334861727,1723610433781,876.69,0.00013972,2]
[334861728,1723610433840,876.69,0.00014246,2]
[334861729,1723610433916,876.69,0.0001452,2]
[334861730,1723610433979,876.69,0.00014794,2]
[334861731,1723610434363,167.34,0.00013713,2]
[334861732,1723610434410,882.27,0.00014245,2]
[334861733,1723610434670,500.0,0.00014235,2]
[334861734,1723610434721,500.0,0.00014509,2]
[334861735,1723610434774,500.0,0.00014783,2]
[334861736,1723610434937,500.0,0.00013698,2]
[334861737,1723610435068,500.0,0.00013972,2]
[334861738,1723610435140,500.0,0.00014246,2]
[334861739,1723610435192,500.0,0.0001452,2]
[334861740,1723610435243,883.81,0.00014235,2]
[334861741,1723610435376,757.57,0.00013698,2]
[334861742,1723610435418,500.0,0.00014794,2]
[334861743,1723610435464,883.81,0.00014509,2]
[334861744,1723610435514,757.57,0.00013972,2]
[334861745,1723610435555,883.81,0.00014783,2]
[334861746,1723610435607,757.57,0.00014246,2]
[334861747,1723610435739,757.57,0.0001452,2]
[334861748,1723610435796,757.57,0.00014794,2]
[334861749,1723610436258,500.0,0.00014235,2]
[334861750,1723610436315,500.0,0.00014509,2]
[334861751,1723610436371,500.0,0.00014783,2]
[334861752,1723610437239,300.0,0.00013971,2]
[334861753,1723610437447,500.0,0.00014235,2]
[334861754,1723610437491,500.0,0.00014509,2]
[334861755,1723610437584,500.0,0.00014783,2]
[334861756,1723610437627,760.31724236,0.00013972,2]
[334861757,1723610437870,500.0,0.00014235,2]
[334861758,1723610437919,500.0,0.00014509,2]
[334861759,1723610437965,500.0,0.00014783,2]
[334861760,1723610438010,5132.0,0.00013698,2]
[334861761,1723610438057,289.0,0.00013698,2]
[334861762,1723610438323,155.0,0.00014899,2]
[334861763,1723610438684,5840.0,0.00013698,2]
[334861764,1723610438871,955.72,0.00014235,2]
[334861765,1723610438993,955.72,0.00014509,2]
[334861766,1723610439036,955.72,0.00014783,2]
[334861767,1723610439509,601.96,0.00014235,2]
[334861768,1723610439616,601.96,0.00014509,2]
[334861769,1723610439664,601.96,0.00014783,2]
[334861770,1723610440762,760.31724236,0.00013972,2]
[334861771,1723610440804,679.08,0.00014235,2]
[334861772,1723610440926,679.08,0.00014509,2]
[334861773,1723610440970,679.08,0.00014783,2]
[334861774,1723610441009,500.0,0.00014244,2]
[334861775,1723610441137,500.0,0.00014518,2]
[334861776,1723610441182,697.11,0.00013698,2]
[334861777,1723610441224,500.0,0.00014792,2]
[334861778,1723610441265,697.11,0.00013972,2]
[334861779,1723610441308,500.0,0.00014235,2]
[334861780,1723610441356,697.11,0.00014246,2]
[334861781,1723610441564,500.0,0.00014509,2]
[334861782,1723610441717,500.0,0.00014783,2]
[334861783,1723610441757,697.11,0.0001452,2]
[334861784,1723610441806,697.11,0.00014794,2]
[334861785,1723610443070,500.0,0.00014244,2]
[334861786,1723610443126,500.0,0.00014518,2]
[334861787,1723610443211,500.0,0.00014792,2]
[334861788,1723610444261,500.0,0.00014244,2]
[334861789,1723610444309,500.0,0.00014518,2]
[334861790,1723610444375,500.0,0.00014792,2]
[334861791,1723610444771,500.0,0.00014235,2]
[334861792,1723610444813,500.0,0.00014509,2]
[334861793,1723610444880,500.0,0.00014783,2]
[334861794,1723610445547,500.0,0.00014244,2]
[334861795,1723610445591,500.0,0.00014518,2]
[334861796,1723610445632,500.0,0.00014792,2]
[334861797,1723610445751,155.0,0.00014899,2]
[334861798,1723610445804,500.0,0.00014244,2]
[334861799,1723610445860,500.0,0.00014518,2]
[334861800,1723610445957,500.0,0.00013698,2]
[334861801,1723610446005,500.0,0.00014792,2]
[334861802,1723610446230,500.0,0.00013972,2]
[334861803,1723610446276,500.0,0.00014246,2]
[334861804,1723610446320,500.0,0.00014235,2]
[334861805,1723610446456,500.0,0.00014509,2]
[334861806,1723610446496,500.0,0.0001452,2]
[334861807,1723610446542,500.0,0.00014783,2]
[334861808,1723610446588,500.0,0.00014794,2]
[334861809,1723610447230,830.61,0.00014235,2]
[334861810,1723610447317,830.61,0.00014509,2]
[334861811,1723610447373,830.61,0.00014783,2]
[334861812,1723610447790,500.0,0.00014244,2]
[334861813,1723610447834,500.0,0.00014518,2]
[334861814,1723610447949,500.0,0.00014792,2]
[334861815,1723610448036,500.0,0.00014235,2]
[334861816,1723610448087,500.0,0.00014509,2]
[334861817,1723610448132,500.0,0.00014783,2]
[334861818,1723610448834,1127.24,0.00014245,2]
[334861819,1723610448895,857.51,0.00014235,2]
[334861820,1723610448941,553.86,0.00014508,2]
[334861821,1723610449023,1145.27,0.00014244,2]
[334861822,1723610449112,557.06,0.00014508,2]
[334861823,1723610449160,1127.24,0.00014519,2]
[334861824,1723610449204,857.51,0.00014509,2]
[334861825,1723610449300,553.86,0.00014782,2]
[334861826,1723610449340,1145.27,0.00014518,2]
[334861827,1723610449402,557.06,0.00014782,2]
[334861828,1723610449442,857.51,0.00014783,2]
[334861829,1723610449526,1127.24,0.00014793,2]
[334861830,1723610449580,1145.27,0.00014792,2]
[334861831,1723610450385,760.31724236,0.00014509,2]
[334861832,1723610450424,3454.02,0.00014235,2]
[334861833,1723610450787,3454.02,0.00014509,2]
[334861834,1723610450947,3454.02,0.00014783,2]
[334861835,1723610451180,707.035395,0.00014508,2]
[334861836,1723610451317,500.0,0.00014244,2]
[334861837,1723610451478,707.035395,0.00014782,2]
[334861838,1723610451567,500.0,0.00014518,2]
[334861839,1723610451984,500.0,0.00014792,2]
[334861840,1723610452313,786.22,0.00013698,2]
[334861841,1723610452570,500.0,0.00014235,2]
[334861842,1723610452626,786.22,0.00013972,2]
[334861843,1723610452813,500.0,0.00014509,2]
[334861844,1723610452871,786.22,0.00014246,2]
[334861845,1723610453044,500.0,0.00013698,2]
[334861846,1723610453089,500.0,0.00014783,2]
[334861847,1723610453145,786.22,0.0001452,2]
[334861848,1723610453416,786.22,0.00014794,2]
[334861849,1723610453461,500.0,0.00013972,2]
[334861850,1723610453698,500.0,0.00014246,2]
[334861852,1723610454166,500.0,0.0001452,2]
[334861853,1723610454259,500.0,0.00014794,2]
[334861854,1723610455177,500.0,0.00014244,2]
[334861855,1723610455456,500.0,0.00014518,2]
[334861856,1723610455714,500.0,0.00014792,2]
[334861857,1723610456943,432.70419531,0.00014244,2]
[334861858,1723610457896,805.55,0.00014244,2]
[334861859,1723610458191,805.55,0.00014518,2]
[334861860,1723610458334,804.41,0.00014244,2]
[334861861,1723610458456,805.55,0.00014792,2]
[334861862,1723610458814,804.41,0.00014518,2]
[334861863,1723610459100,804.41,0.00014792,2]
[334861864,1723610461111,500.0,0.00013698,2]
[334861865,1723610461283,500.0,0.00014235,2]
[334861866,1723610461409,500.0,0.00013972,2]
[334861867,1723610461604,500.0,0.00014509,2]
[334861868,1723610461786,500.0,0.00014246,2]
[334861869,1723610462025,602.07014788,0.00014783,2]
[334861870,1723610462065,500.0,0.0001452,2]
[334861871,1723610462340,500.0,0.00014794,2]
[334861872,1723610462641,933.14,0.00013698,2]
[334861873,1723610463180,933.14,0.00013972,2]
[334861874,1723610463236,933.14,0.00014246,2]
[334861875,1723610463514,933.14,0.0001452,2]
[334861876,1723610463770,933.14,0.00014794,2]
[334861877,1723610463904,500.0,0.00014235,2]
[334861878,1723610464514,500.0,0.00014509,2]
[334861879,1723610464579,205.84307918,0.00014783,2]
[334861880,1723610465549,500.0,0.00014235,2]
[334861881,1723610465774,500.0,0.00014244,2]
[334861882,1723610465819,500.0,0.00014509,2]
[334861883,1723610466022,500.0,0.00014518,2]
[334861884,1723610466062,500.0,0.00014783,2]
[334861885,1723610466356,500.0,0.00014792,2]
[334861886,1723610467528,500.0,0.00013698,2]
[334861887,1723610467570,500.0,0.00014235,2]
[334861888,1723610467801,500.0,0.00013972,2]
[334861889,1723610468053,500.0,0.00014246,2]
[334861890,1723610468313,500.0,0.0001452,2]
[334861891,1723610468359,500.0,0.00014509,2]
[334861892,1723610468590,500.0,0.00014794,2]
[334861893,1723610468629,500.0,0.00014783,2]
[334861894,1723610469033,500.0,0.00014508,2]
[334861895,1723610469297,500.0,0.00014782,2]
[334861896,1723610469496,500.0,0.00014235,2]
[334861897,1723610469541,500.0,0.00014235,2]
[334861898,1723610469754,500.0,0.00014509,2]
[334861899,1723610469827,500.0,0.00014509,2]
[334861900,1723610470032,500.0,0.00014783,2]
[334861901,1723610470129,500.0,0.00014783,2]
[334861902,1723610471179,1010.87,0.00013698,2]
[334861903,1723610471218,666.41,0.00013698,2]
[334861904,1723610471260,658.26,0.00014235,2]
[334861905,1723610471452,666.41,0.00013972,2]
[334861906,1723610471497,1010.87,0.00013972,2]
[334861907,1723610471714,1010.87,0.00014246,2]
[334861908,1723610471756,658.26,0.00014509,2]
[334861909,1723610471798,666.41,0.00014246,2]
[334861910,1723610471996,1010.87,0.0001452,2]
[334861911,1723610472041,658.26,0.00014783,2]
[334861912,1723610472260,1010.87,0.00014794,2]
[334861913,1723610472448,666.41,0.0001452,2]
[334861914,1723610472796,666.41,0.00014794,2]
[334861915,1723610474318,500.0,0.00014235,2]
[334861916,1723610474775,672.79,0.00014245,2]
[334861917,1723610474820,385.26,0.00014698,2]
[334861918,1723610474875,672.79,0.00014519,2]
[334861919,1723610474931,500.0,0.00014509,2]
[334861920,1723610474975,502.32,0.00014508,2]
[334861921,1723610475060,672.79,0.00014793,2]
[334861922,1723610475123,500.0,0.00014783,2]
[334861923,1723610475207,502.32,0.00014782,2]
[334861924,1723610476135,309.0754386,0.00014244,2]
[334861925,1723610476321,1944.42,0.00014508,2]
[334861926,1723610476599,1944.42,0.00014782,2]
[334861927,1723610477052,616.3,0.00014235,2]
[334861928,1723610477323,872.53467396,0.00014509,2]
[334861929,1723610477363,616.3,0.00014509,2]
[334861930,1723610477553,1322.76,0.00014244,2]
[334861931,1723610477617,616.3,0.00014783,2]
[334861932,1723610477912,1322.76,0.00014518,2]
[334861933,1723610477956,500.0,0.00014235,2]
[334861934,1723610478227,500.0,0.00014509,2]
[334861935,1723610478273,1322.76,0.00014792,2]
[334861936,1723610478320,500.0,0.00014244,2]
[334861937,1723610478526,500.0,0.00014783,2]
[334861938,1723610478577,500.0,0.00014518,2]
[334861939,1723610478791,500.0,0.00014792,2]
[334861940,1723610479580,500.0,0.00014244,2]
[334861941,1723610479868,500.0,0.00014518,2]
[334861942,1723610480149,713.77,0.00013698,2]
[334861943,1723610480190,500.0,0.00014792,2]
[334861944,1723610480451,713.77,0.00013972,2]
[334861945,1723610480513,500.0,0.00013698,2]
[334861946,1723610480698,713.77,0.00014246,2]
[334861947,1723610480986,537.76457582,0.00014244,2]
[334861948,1723610481250,713.77,0.0001452,2]
[334861949,1723610481531,713.77,0.00014794,2]
[334861950,1723610481570,500.0,0.00013972,2]
[334861951,1723610482021,500.0,0.00014246,2]
[334861952,1723610482289,500.0,0.0001452,2]
[334861953,1723610482584,500.0,0.00014794,2]
[334861954,1723610483296,2633.99,0.00014245,2]
[334861955,1723610483334,500.0,0.00014235,2]
[334861956,1723610483548,2633.99,0.00014519,2]
[334861957,1723610483586,500.0,0.00014235,2]
[334861958,1723610483627,6920.13,0.00014235,2]
[334861959,1723610483663,500.0,0.00014509,2]
[334861960,1723610483810,500.0,0.00014783,2]
[334861961,1723610483847,2633.99,0.00014793,2]
[334861962,1723610483891,227.49085452,0.00014509,2]
[334861963,1723610484149,6920.13,0.00014509,2]
[334861964,1723610484216,6920.13,0.00014783,2]
[334861965,1723610484283,500.0,0.00014244,2]
[334861966,1723610485038,500.0,0.00014518,2]
[334861967,1723610485088,5109.89,0.00014508,2]
[334861968,1723610485227,5109.89,0.00014782,2]
[334861969,1723610485488,500.0,0.00014792,2]
[334861970,1723610485822,500.0,0.00014235,2]
[334861971,1723610486178,500.0,0.00014509,2]
[334861972,1723610486227,500.0,0.00014244,2]
[334861973,1723610486271,500.0,0.00014235,2]
[334861974,1723610486468,500.0,0.00014518,2]
[334861975,1723610486520,500.0,0.00014509,2]
[334861976,1723610486753,500.0,0.00014792,2]
[334861977,1723610486899,500.0,0.00014783,2]
[334861978,1723610487371,1332.43,0.00014244,2]
[334861979,1723610487601,1332.43,0.00014518,2]
[334861980,1723610487862,1438.27,0.00014244,2]
[334861981,1723610487906,1332.43,0.00014792,2]
[334861982,1723610487954,916.53,0.00014508,2]
[334861983,1723610488157,1438.27,0.00014518,2]
[334861984,1723610488195,916.53,0.00014782,2]
[334861985,1723610488276,171.26,0.00013973,2]
[334861986,1723610488597,1438.27,0.00014792,2]
[334861987,1723610488836,500.0,0.00014235,2]
[334861988,1723610488929,959.75,0.00013698,2]
[334861989,1723610489095,500.0,0.00014509,2]
[334861990,1723610489200,959.75,0.00013972,2]
[334861991,1723610489368,500.0,0.00014783,2]
[334861992,1723610489448,959.75,0.00014246,2]
[334861993,1723610489644,500.0,0.00014783,2]
[334861994,1723610489711,959.75,0.0001452,2]
[334861995,1723610489977,500.0,0.00014244,2]
[334861996,1723610490066,959.75,0.00014794,2]
[334861997,1723610490237,500.0,0.00014518,2]
[334861998,1723610490573,500.0,0.00014792,2]
[334861999,1723610491731,500.0,0.00013698,2]
[334862000,1723610491865,1830.83,0.00014245,2]
[334862001,1723610491988,500.0,0.00013972,2]
[334862002,1723610492339,1830.83,0.00014519,2]
[334862003,1723610492403,500.0,0.00014246,2]
[334862004,1723610492463,1830.83,0.00014793,2]
[334862005,1723610492547,500.0,0.0001452,2]
[334862006,1723610492804,500.0,0.00014794,2]
[334862007,1723610493198,500.0,0.00013698,2]
[334862008,1723610493776,500.0,0.00013972,2]
[334862009,1723610494040,919.18,0.00014235,2]
[334862010,1723610494088,645.89432884,0.00014246,2]
[334862011,1723610494295,919.18,0.00014509,2]
[334862012,1723610494336,500.0,0.00014235,2]
[334862013,1723610494561,919.18,0.00014783,2]
[334862014,1723610494600,500.0,0.00014509,2]
[334862015,1723610494863,500.0,0.00014783,2]
[334862016,1723610495411,522.17,0.00014235,2]
[334862017,1723610495632,522.17,0.00014509,2]
[334862018,1723610495887,522.17,0.00014783,2]
[334862019,1723610496005,2361.75,0.00014244,2]
[334862020,1723610496066,1591.77,0.00014244,2]
[334862021,1723610496197,2361.75,0.00014518,2]
[334862022,1723610496323,1591.77,0.00014518,2]
[334862023,1723610496458,2361.75,0.00014792,2]
[334862024,1723610496566,2123.7,0.00014508,2]
[334862025,1723610496608,1591.77,0.00014792,2]
[334862026,1723610496824,2123.7,0.00014782,2]
[334862027,1723610497374,500.0,0.00014235,2]
[334862028,1723610497636,500.0,0.00014509,2]
[334862029,1723610497904,500.0,0.00014783,2]
[334862030,1723610498460,500.0,0.00013698,2]
[334862031,1723610498710,500.0,0.00013972,2]
[334862032,1723610498983,500.0,0.00014246,2]
[334862033,1723610499254,500.0,0.0001452,2]
[334862034,1723610499660,983.96,0.00014508,2]
[334862035,1723610499937,983.96,0.00014782,2]
[334862036,1723610500239,500.0,0.00013698,2]
[334862037,1723610500509,500.0,0.00013972,2]
[334862038,1723610500580,197.42,0.00014235,2]
[334862039,1723610500796,500.0,0.00014246,2]
[334862040,1723610500924,500.0,0.00014245,2]
[334862041,1723610501258,500.0,0.0001452,2]
[334862042,1723610501320,500.0,0.00014519,2]
[334862043,1723610501368,954.54,0.00014235,2]
[334862044,1723610501421,500.0,0.00014794,2]
[334862045,1723610501466,500.0,0.00014793,2]
[334862046,1723610501527,954.54,0.00014509,2]
[334862047,1723610503021,954.54,0.00014783,2]
[334862048,1723610503150,500.0,0.00013698,2]
[334862049,1723610503423,500.0,0.00013972,2]
[334862050,1723610503600,642.49,0.00014235,2]
[334862051,1723610503717,500.0,0.00014246,2]
[334862052,1723610503887,642.49,0.00014509,2]
[334862053,1723610503980,500.0,0.0001452,2]
[334862054,1723610504150,642.49,0.00014783,2]
[334862055,1723610504285,500.0,0.00014794,2]
[334862056,1723610505591,798.77,0.00014235,2]
[334862057,1723610505672,798.77,0.00014509,2]
[334862058,1723610505882,798.77,0.00014783,2]
[334862059,1723610506515,967.24,0.00014235,2]
[334862060,1723610506780,967.24,0.00014509,2]
[334862061,1723610506888,3326.33,0.00014508,2]
[334862062,1723610507044,967.24,0.00014783,2]
[334862063,1723610507092,500.0,0.00014244,2]
[334862064,1723610507166,3326.33,0.00014782,2]
[334862065,1723610507321,500.0,0.00014518,2]
[334862066,1723610507584,500.0,0.00014792,2]
[334862067,1723610507823,573.47,0.00014235,2]
[334862068,1723610507875,1365.97,0.00014244,2]
[334862069,1723610508107,573.47,0.00014509,2]
[334862070,1723610508150,1365.97,0.00014518,2]
[334862071,1723610508396,1365.97,0.00014792,2]
[334862072,1723610508507,573.47,0.00014783,2]
[334862073,1723610510822,1987.05,0.00014245,2]
[334862074,1723610511084,1987.05,0.00014519,2]
[334862075,1723610511270,3740.02,0.00014508,2]
[334862076,1723610511379,1987.05,0.00014793,2]
[334862077,1723610511451,500.0,0.00013698,2]
[334862078,1723610511535,3740.02,0.00014782,2]
[334862079,1723610511730,500.0,0.00013972,2]
[334862080,1723610511990,500.0,0.00014246,2]
[334862081,1723610512261,500.0,0.0001452,2]
[334862082,1723610512567,500.0,0.00014794,2]
[334862083,1723610513759,544.09,0.00013698,2]
[334862084,1723610514017,544.09,0.00013972,2]
[334862085,1723610514272,544.09,0.00014246,2]
[334862086,1723610514522,544.09,0.0001452,2]
[334862087,1723610514799,544.09,0.00014794,2]
[334862088,1723610514995,500.0,0.00014244,2]
[334862089,1723610515247,500.0,0.00014518,2]
[334862090,1723610515509,500.0,0.00014792,2]
[334862091,1723610515999,998.12,0.00014508,2]
[334862092,1723610516156,500.0,0.00014244,2]
[334862093,1723610516263,998.12,0.00014782,2]
[334862094,1723610516313,500.0,0.00014518,2]
[334862095,1723610516374,500.0,0.00014244,2]
[334862096,1723610516454,757.15,0.00014235,2]
[334862097,1723610516513,500.0,0.00014792,2]
[334862098,1723610516622,500.0,0.00014518,2]
[334862099,1723610516665,500.0,0.00013698,2]
[334862100,1723610516751,757.15,0.00014509,2]
[334862101,1723610516891,500.0,0.00014235,2]
[334862102,1723610516936,500.0,0.00014792,2]
[334862103,1723610516985,500.0,0.00013972,2]
[334862104,1723610517029,757.15,0.00014783,2]
[334862105,1723610517096,500.0,0.00014244,2]
[334862106,1723610517203,500.0,0.00014246,2]
[334862107,1723610517247,346.27364436,0.00014509,2]
[334862108,1723610517367,500.0,0.00014518,2]
[334862109,1723610517441,500.0,0.0001452,2]
[334862110,1723610517725,1594.07,0.00014235,2]
[334862111,1723610518256,1594.07,0.00014509,2]
[334862112,1723610518454,500.0,0.00014792,2]
[334862113,1723610518528,1594.07,0.00014783,2]
[334862114,1723610518601,243.76105135,0.00014235,2]
[334862115,1723610521312,500.0,0.00014235,2]
[334862116,1723610521383,500.0,0.00014509,2]
[334862117,1723610521505,500.0,0.00014783,2]
[334862118,1723610521695,500.0,0.00014245,2]
[334862119,1723610521963,500.0,0.00014519,2]
[334862120,1723610522212,500.0,0.00014793,2]
[334862121,1723610522974,1334.58,0.00014235,2]
[334862122,1723610523040,500.0,0.00013698,2]
[334862123,1723610523321,500.0,0.00013698,2]
[334862124,1723610523366,1334.58,0.00014509,2]
[334862125,1723610523411,500.0,0.00013972,2]
[334862126,1723610523540,1334.58,0.00014783,2]
[334862127,1723610523583,500.0,0.00013972,2]
[334862128,1723610523716,4639.94,0.00014244,2]
[334862129,1723610523759,31360.2,0.00014244,2]
[334862130,1723610523835,500.0,0.00014246,2]
[334862131,1723610523972,4639.94,0.00014518,2]
[334862132,1723610524016,31360.2,0.00014518,2]
[334862133,1723610524103,500.0,0.0001452,2]
[334862134,1723610524264,4639.94,0.00014792,2]
[334862135,1723610524305,31360.2,0.00014792,2]
[334862136,1723610524374,778.49,0.00014235,2]
[334862137,1723610524416,500.0,0.00014794,2]
[334862138,1723610524672,778.49,0.00014509,2]
[334862139,1723610524944,778.49,0.00014783,2]
[334862140,1723610525203,565.42,0.00014235,2]
[334862141,1723610525474,565.42,0.00014509,2]
[334862142,1723610525734,565.42,0.00014783,2]
[334862143,1723610527881,560.73,0.00013698,2]
[334862144,1723610528159,560.73,0.00013972,2]
[334862145,1723610528352,2457.35,0.00014235,2]
[334862146,1723610528451,560.73,0.00014246,2]
[334862147,1723610528644,2457.35,0.00014509,2]
[334862148,1723610528716,560.73,0.0001452,2]
[334862149,1723610528901,2457.35,0.00014783,2]
[334862150,1723610528959,750.71,0.00014245,2]
[334862151,1723610529017,605.78,0.00014235,2]
[334862152,1723610529159,560.73,0.00014794,2]
[334862153,1723610529250,750.71,0.00014519,2]
[334862154,1723610529292,605.78,0.00014509,2]
[334862155,1723610529506,750.71,0.00014793,2]
[334862156,1723610529557,605.78,0.00014783,2]
[334862157,1723610530960,17191.55,0.00014508,2]
[334862158,1723610531249,17191.55,0.00014782,2]
[334862159,1723610533461,1054.64,0.00014244,2]
[334862160,1723610533540,500.0,0.00014244,2]
[334862161,1723610533778,1054.64,0.00014518,2]
[334862162,1723610533819,500.0,0.00014518,2]
[334862163,1723610534044,1054.64,0.00014792,2]
[334862164,1723610534098,500.0,0.00014792,2]
[334862165,1723610535195,500.0,0.00013698,2]
[334862166,1723610535264,1767.46,0.00014508,2]
[334862167,1723610535471,500.0,0.00013972,2]
[334862168,1723610535554,1767.46,0.00014782,2]
[334862169,1723610535644,500.0,0.00014235,2]
[334862170,1723610535691,500.0,0.00014244,2]
[334862171,1723610535859,500.0,0.00014246,2]
[334862172,1723610535903,500.0,0.00014245,2]
[334862173,1723610535955,500.0,0.00014518,2]
[334862174,1723610536089,500.0,0.00014235,2]
[334862175,1723610536140,234.77310278,0.0001452,2]
[334862176,1723610536177,500.0,0.00014245,2]
[334862177,1723610536635,500.0,0.00014509,2]
[334862178,1723610536680,500.0,0.00014792,2]
[334862179,1723610536730,500.0,0.00014245,2]
[334862180,1723610536773,500.0,0.00014783,2]
[334862181,1723610536830,500.0,0.0001446,2]
[334862182,1723610537000,500.0,0.00014519,2]
[334862183,1723610537412,500.0,0.00014519,2]
[334862184,1723610537641,500.0,0.00014519,2]
[334862185,1723610537739,641.56,0.00014235,2]
[334862186,1723610537931,500.0,0.00014792,2]
[334862187,1723610538011,641.56,0.00014509,2]
[334862188,1723610538274,641.56,0.00014783,2]
[334862189,1723610538451,500.0,0.00014793,2]
[334862190,1723610538732,500.0,0.00014235,2]
[334862191,1723610539092,500.0,0.00014793,2]
[334862192,1723610539370,500.0,0.00014793,2]
[334862193,1723610539990,500.0,0.00014244,2]
[334862194,1723610540263,500.0,0.00014518,2]
[334862195,1723610540521,500.0,0.00014792,2]